fUST/lending_fUST_20250907
["ID","MTS","AMOUNT","RATE_DAILY","PERIOD"]
[383930628,1757179839979,-500.0,0.00013363,2]
[383930629,1757179839988,-500.0,0.00013363,2]
[383930631,1757179840000,-500.0,0.00013363,2]
[383930633,1757179840009,-500.0,0.00013363,2]
[383930635,1757179840019,-500.0,0.00013363,2]
[383930637,1757179840028,-500.0,0.00013363,2]
[383930639,1757179840038,-69478.5759526,0.00013364,2]
[383930651,1757179840149,-17346.24455522,0.00013364,2]
[383930654,1757179840160,-22581.94921216,0.00013364,2]
[383930925,1757179842883,-2064.99991946,0.00013364,2]
[383930931,1757179842938,-563.21139385,0.00013364,2]
[383931230,1757179846120,-71575.7024798,0.00013364,2]
[383931232,1757179846131,-250.0,0.00013364,2]
[383931234,1757179846143,-500.0,0.00013373,2]
[383931236,1757179846154,-500.0,0.00013373,2]
[383931238,1757179846165,-975.0,0.00013579,2]
[383931240,1757179846175,-2154.0,0.00013579,2]
[383931243,1757179846186,-634.0,0.00013579,2]
[383931245,1757179846198,-409.0,0.00013579,2]
[383931247,1757179846209,-2053.32409631,0.00013598,2]
[383931249,1757179846220,-203.21852024,0.00013604,2]
[383931251,1757179846230,-160.0,0.00013604,2]
[383931253,1757179846242,-417.15472785,0.00013604,2]
[383931255,1757179846252,-530.56961759,0.00013604,2]
[383931258,1757179846263,-217.58669629,0.00013604,2]
[383931260,1757179846274,-160.0,0.00013604,2]
[383931262,1757179846286,-160.0,0.00013604,2]
[383931264,1757179846297,-232.99021696,0.00013604,2]
[383931266,1757179846307,-543.7846362,0.00013604,2]
[383931272,1757179846348,-302.80091068,0.00013604,2]
[383931274,1757179846358,-160.0,0.00013605,2]
[383931276,1757179846369,-160.0,0.00013605,2]
[383931278,1757179846380,-78.10704287,0.00013643,2]
[383931280,1757179846393,-226.34495713,0.00013643,2]
[383931282,1757179846403,-150.0,0.00013657,2]
[383931285,1757179846414,-76.65504287,0.00013657,2]
[383933811,1757180088898,300.0,0.00013129,2]
[383933812,1757180105590,4931.03187439,0.00013131,2]
[383933813,1757180113907,300.0,0.00013129,2]
[383933814,1757180137972,300.0,0.00013129,2]
[383933815,1757180162531,300.0,0.00013129,2]
[383933816,1757180186383,300.0,0.00013129,2]
[383933817,1757180211585,300.0,0.00013129,2]
[383933818,1757180236538,300.0,0.00013129,2]
[383933819,1757180260336,300.0,0.00013129,2]
[383933820,1757180285103,300.0,0.00013129,2]
[383933821,1757180309582,300.0,0.00013129,2]
[383933822,1757180333676,300.0,0.00013129,2]
[383933825,1757180357691,677.67514238,0.00013131,2]
[383933833,1757180835006,194.31853431,0.00013163,2]
[383933855,1757181032023,-300.0,0.00013262,2]
[383933857,1757181032035,-500.0,0.00013263,2]
[383933859,1757181032045,-192.10528596,0.00013263,2]
[383933861,1757181032055,-500.0,0.00013263,2]
[383933863,1757181032065,-500.0,0.00013263,2]
[383933865,1757181032074,-500.0,0.00013263,2]
[383933867,1757181032084,-500.0,0.00013263,2]
[383933868,1757181032094,-500.0,0.00013263,2]
[383933871,1757181032105,-500.0,0.00013263,2]
[383933873,1757181032114,-500.0,0.00013263,2]
[383933875,1757181032124,-500.0,0.00013263,2]
[383933877,1757181032133,-293.96658526,0.00013263,2]
[383933879,1757181032143,-500.0,0.00013263,2]
[383933881,1757181032153,-500.0,0.00013263,2]
[383933883,1757181032163,-324.03956666,0.00013263,2]
[383933885,1757181032173,-600.0,0.00013263,2]
[383933887,1757181032182,-500.0,0.00013263,2]
[383933889,1757181032192,-500.0,0.00013263,2]
[383933891,1757181032201,-500.0,0.00013263,2]
[383933893,1757181032211,-500.0,0.00013263,2]
[383933895,1757181032221,-500.0,0.00013263,2]
[383933897,1757181032231,-500.0,0.00013263,2]
[383933899,1757181032240,-500.0,0.00013263,2]
[383933901,1757181032250,-500.0,0.00013263,2]
[383933903,1757181032259,-500.0,0.00013263,2]
[383933905,1757181032269,-50592.68804421,0.00013264,2]
[383933956,1757181038038,-97692.05502407,0.00013264,2]
[383933958,1757181038052,-77520.29085677,0.00013264,2]
[383934080,1757181040299,-51244.10162446,0.00013264,2]
[383934141,1757181043223,-39980.43830603,0.00013264,2]
[383934143,1757181043234,-169.9243426,0.00013275,2]
[383934144,1757181043243,-341.3384953,0.00013375,2]
[383934145,1757181043253,-6485.1926389,0.000136,2]
[383934153,1757181182740,300.0,0.00013163,2]
[383934155,1757181244201,300.0,0.00013163,2]
[383934156,1757181303128,300.0,0.00013163,2]
[383934157,1757181363173,300.0,0.00013163,2]
[383934158,1757181407710,174.83,0.00012329,2]
[383934159,1757181418160,291.39,0.00012329,2]
[383934160,1757181422569,300.0,0.00013163,2]
[383934161,1757181428587,364.24,0.00012329,2]
[383934162,1757181439050,404.71,0.00012329,2]
[383934163,1757181449880,421.57,0.00012329,2]
[383934164,1757181460416,421.57,0.00012329,2]
[383934165,1757181470927,351.31,0.00012329,2]
[383934166,1757181481384,292.76,0.00012329,2]
[383934167,1757181492086,243.97,0.00012329,2]
[383934168,1757181503028,203.3,0.00012329,2]
[383934169,1757181513735,358.09,0.00012329,2]
[383934170,1757181525136,325.51,0.00012329,2]
[383934171,1757181535765,271.26,0.00012329,2]
[383934172,1757181542582,300.0,0.00013163,2]
[383934173,1757181546428,361.59,0.00012329,2]
[383934174,1757181557634,301.33,0.00012329,2]
[383934175,1757181568467,251.11,0.00012329,2]
[383934176,1757181579610,209.25,0.00012329,2]
[383934182,1757181590493,174.38,0.00012329,2]
[383934183,1757181601388,871.92,0.00012329,2]
[383934184,1757181602587,300.0,0.00013163,2]
[383934185,1757181659953,394.07061356,0.0001265,2]
[383934186,1757181663106,300.0,0.00013163,2]
[383934187,1757181722451,300.0,0.00013163,2]
[383934188,1757181782996,300.0,0.00013163,2]
[383934189,1757181842486,300.0,0.00013163,2]
[383934190,1757181902959,300.0,0.00013163,2]
[383934191,1757181930424,2620.0,0.00027397,120]
[383934192,1757181962857,300.0,0.00013163,2]
[383934195,1757182022419,300.0,0.00013163,2]
[383934196,1757182082756,300.0,0.00013163,2]
[383934197,1757182142887,300.0,0.00013163,2]
[383934198,1757182202408,300.0,0.00013163,2]
[383934202,1757182232261,-500.0,0.00013163,2]
[383934203,1757182232272,-46357.30895663,0.00013164,2]
[383934363,1757182240525,-11231.13428417,0.00013164,2]
[383934364,1757182240536,-62835.34799598,0.00013164,2]
[383934375,1757182243205,-4139.80893045,0.00013164,2]
[383934376,1757182243217,-11811.0,0.00013164,2]
[383934377,1757182243311,-10344.73946667,0.00013164,2]
[383934388,1757182262608,300.0,0.00013163,2]
[383934389,1757182323062,300.0,0.00013163,2]
[383934390,1757182334868,1200.0,0.00013163,2]
[383934391,1757182382643,300.0,0.00013163,2]
[383934393,1757182442941,300.0,0.00013163,2]
[383934394,1757182443478,10242.57813537,0.00013064,2]
[383934408,1757182550572,152.42,0.00013,120]
[383934411,1757182730516,274.17,0.00024657,120]
[383934414,1757183013833,416.71,3e-05,5]
[383934421,1757183205267,327.0,0.00013032,2]
[383934423,1757183228748,327.0,0.00013032,2]
[383934445,1757183432339,-327.0,0.00013163,2]
[383934446,1757183432348,-156.0,0.00013302,2]
[383934447,1757183432358,-156.0,0.00013302,2]
[383934448,1757183432367,-183.97677598,0.00013302,2]
[383934449,1757183432377,-1442.23833234,0.00013488,2]
[383934450,1757183432387,-1200.0,0.00013496,2]
[383934451,1757183432396,-1200.0,0.00013497,2]
[383934453,1757183432406,-300.0,0.00013497,2]
[383934455,1757183432415,-300.0,0.00013497,2]
[383934456,1757183432424,-300.0,0.00013497,2]
[383934457,1757183432433,-300.0,0.00013497,2]
[383934459,1757183432443,-23403.80584465,0.000135,2]
[383934461,1757183432452,-192.40332694,0.000135,2]
[383934463,1757183432462,-2105.41764886,0.00013584,2]
[383934465,1757183432471,-50000.0,0.00013587,2]
[383934467,1757183432480,-1000.0,0.00013592,2]
[383934469,1757183432490,-1000.0,0.00013592,2]
[383934471,1757183432499,-724.96854197,0.00013592,2]
[383934473,1757183432508,-151.0,0.00013592,2]
[383934475,1757183432518,-187.78006524,0.00013592,2]
[383934477,1757183432528,-151.0,0.00013592,2]
[383934479,1757183432537,-19292.2273969,0.00013592,2]
[383934480,1757183432548,-151.0,0.00013592,2]
[383934481,1757183432558,-151.0,0.00013592,2]
[383934482,1757183432569,-151.0,0.00013592,2]
[383934483,1757183432579,-151.0,0.00013592,2]
[383934484,1757183432588,-151.0,0.00013592,2]
[383934485,1757183432598,-1000.0,0.00013592,2]
[383934486,1757183432607,-151.0,0.00013592,2]
[383934487,1757183432617,-250.0,0.00013592,2]
[383934488,1757183432627,-151.0,0.00013592,2]
[383934489,1757183432636,-151.0,0.00013592,2]
[383934490,1757183432645,-1000.0,0.00013592,2]
[383934491,1757183432655,-250.0,0.00013592,2]
[383934492,1757183432665,-151.0,0.00013592,2]
[383934493,1757183432674,-151.0,0.00013592,2]
[383934494,1757183432683,-1000.0,0.00013592,2]
[383934495,1757183432693,-250.0,0.00013592,2]
[383934496,1757183432703,-151.0,0.00013592,2]
[383934497,1757183432712,-151.0,0.00013592,2]
[383934498,1757183432722,-250.0,0.00013592,2]
[383934499,1757183432732,-1000.0,0.00013592,2]
[383934500,1757183432742,-151.0,0.00013592,2]
[383934501,1757183432751,-151.0,0.00013592,2]
[383934502,1757183432760,-250.0,0.00013592,2]
[383934503,1757183432770,-1000.0,0.00013592,2]
[383934504,1757183432780,-151.0,0.00013592,2]
[383934505,1757183432789,-1000.0,0.00013592,2]
[383934506,1757183432799,-250.0,0.00013592,2]
[383934507,1757183432808,-151.0,0.00013592,2]
[383934508,1757183432817,-151.0,0.00013592,2]
[383934509,1757183432827,-250.0,0.00013592,2]
[383934510,1757183432836,-151.0,0.00013592,2]
[383934511,1757183432846,-1000.0,0.00013592,2]
[383934512,1757183432855,-172.25185898,0.00013592,2]
[383934513,1757183432865,-250.0,0.00013592,2]
[383934514,1757183432874,-151.0,0.00013592,2]
[383934515,1757183432884,-1000.0,0.00013592,2]
[383934516,1757183432894,-300.0,0.00013592,2]
[383934517,1757183432904,-151.0,0.00013592,2]
[383934518,1757183432914,-1130.90766004,0.00013592,2]
[383934519,1757183433122,-192.40332691,0.00013593,2]
[383934520,1757183433134,-217.58669629,0.00013596,2]
[383934521,1757183433145,-203.21852024,0.00013596,2]
[383934522,1757183433155,-160.0,0.00013596,2]
[383934523,1757183433165,-232.99021696,0.00013596,2]
[383934524,1757183433175,-160.0,0.00013596,2]
[383934525,1757183433184,-846.58554688,0.00013596,2]
[383934526,1757183433194,-160.0,0.00013596,2]
[383934527,1757183433203,-530.56961759,0.00013596,2]
[383934528,1757183433212,-417.15472785,0.00013596,2]
[383934529,1757183433222,-160.0,0.00013596,2]
[383934530,1757183433231,-500.0,0.00013599,2]
[383934531,1757183433241,-500.0,0.00013599,2]
[383934532,1757183433250,-324.21917317,0.00013599,2]
[383934533,1757183433260,-500.0,0.00013599,2]
[383934534,1757183433269,-500.0,0.00013599,2]
[383934535,1757183433279,-500.0,0.00013599,2]
[383934536,1757183433289,-500.0,0.00013599,2]
[383934537,1757183433298,-500.0,0.00013599,2]
[383934538,1757183433308,-500.0,0.00013599,2]
[383934539,1757183433318,-500.0,0.00013599,2]
[383934540,1757183433327,-500.0,0.00013599,2]
[383934541,1757183433336,-22894.32170361,0.000136,2]
[383934543,1757183438218,-360.88929407,0.00013586,2]
[383934544,1757183438227,-500.0,0.00013586,2]
[383934545,1757183438236,-500.0,0.00013586,2]
[383934546,1757183438244,-500.0,0.00013586,2]
[383934547,1757183438253,-75073.48565649,0.000136,2]
[383934548,1757183438263,-174.42315909,0.000136,2]
[383934549,1757183438271,-151.0,0.000136,2]
[383934550,1757183438280,-151.0,0.000136,2]
[383934551,1757183438289,-151.0,0.000136,2]
[383934552,1757183438300,-151.0,0.000136,2]
[383934553,1757183438310,-174.255112,0.000136,2]
[383934554,1757183438319,-174.255112,0.000136,2]
[383934555,1757183438328,-260.836864,0.000136,2]
[383934556,1757183438337,-174.255112,0.000136,2]
[383934558,1757183438346,-260.836864,0.000136,2]
[383934559,1757183438355,-174.255112,0.000136,2]
[383934560,1757183438364,-260.836864,0.000136,2]
[383934561,1757183438373,-260.836864,0.000136,2]
[383934563,1757183438383,-686.16334662,0.000136,2]
[383934564,1757183438395,-305.03739238,0.000136,2]
[383934565,1757183438404,-991.200739,0.000136,2]
[383934566,1757183438413,-991.200739,0.000136,2]
[383934567,1757183438422,-991.200739,0.000136,2]
[383934568,1757183438431,-151.0,0.000136,2]
[383934569,1757183438440,-151.0,0.000136,2]
[383934570,1757183438449,-151.0,0.000136,2]
[383934571,1757183438458,-151.0,0.000136,2]
[383934572,1757183438467,-151.0,0.000136,2]
[383934573,1757183438476,-151.0,0.000136,2]
[383934574,1757183438485,-151.0,0.000136,2]
[383934575,1757183438494,-151.0,0.000136,2]
[383934576,1757183438503,-151.0,0.000136,2]
[383934577,1757183438512,-151.0,0.000136,2]
[383934578,1757183438521,-151.0,0.000136,2]
[383934579,1757183438530,-151.0,0.000136,2]
[383934580,1757183438539,-151.0,0.000136,2]
[383934581,1757183438548,-151.0,0.000136,2]
[383934582,1757183438557,-151.0,0.000136,2]
[383934583,1757183438567,-151.0,0.000136,2]
[383934584,1757183438576,-151.0,0.000136,2]
[383934585,1757183438585,-151.0,0.000136,2]
[383934586,1757183438594,-151.0,0.000136,2]
[383934587,1757183438603,-260.611404,0.000136,2]
[383934588,1757183438613,-151.0,0.000136,2]
[383934589,1757183438622,-151.0,0.000136,2]
[383934590,1757183438631,-151.0,0.000136,2]
[383934591,1757183438640,-151.0,0.000136,2]
[383934592,1757183438649,-151.0,0.000136,2]
[383934593,1757183438658,-188.320365,0.000136,2]
[383934594,1757183438667,-151.0,0.000136,2]
[383934595,1757183438676,-188.320365,0.000136,2]
[383934596,1757183438686,-188.320365,0.000136,2]
[383934597,1757183438695,-151.0,0.000136,2]
[383934598,1757183438704,-96.508059,0.000136,2]
[383934599,1757183438716,-91.812306,0.000136,2]
[383934600,1757183438725,-151.0,0.000136,2]
[383934601,1757183438734,-151.0,0.000136,2]
[383934602,1757183438743,-151.0,0.000136,2]
[383934603,1757183438752,-151.0,0.000136,2]
[383934604,1757183438761,-151.0,0.000136,2]
[383934605,1757183438769,-151.0,0.000136,2]
[383934606,1757183438779,-205.226161,0.000136,2]
[383934607,1757183438788,-154.676439,0.000136,2]
[383934608,1757183438797,-151.80655279,0.000136,2]
[383934609,1757183438805,-176.739028,0.000136,2]
[383934610,1757183438814,-176.739028,0.000136,2]
[383934611,1757183438823,-151.0,0.000136,2]
[383934612,1757183438832,-176.739028,0.000136,2]
[383934613,1757183438841,-151.0,0.000136,2]
[383934614,1757183438850,-176.739028,0.000136,2]
[383934615,1757183438859,-715.976417,0.000136,2]
[383934616,1757183438868,-715.976417,0.000136,2]
[383934617,1757183438877,-715.976417,0.000136,2]
[383934618,1757183438887,-390.45158215,0.00013617,2]
[383934619,1757183438898,-109.54841785,0.00013617,2]
[383934620,1757183438908,-243.0,0.00013617,2]
[383934621,1757183438917,-206.95306667,0.00013617,2]
[383934622,1757183438928,-513.04693333,0.00013617,2]
[383934623,1757183438937,-40.00404975,0.00013617,2]
[383934624,1757183438948,-109.99595025,0.00013617,2]
[383934625,1757183438958,-150.0,0.00013617,2]
[383934626,1757183438967,-150.0,0.00013617,2]
[383934627,1757183438977,-150.0,0.00013617,2]
[383934628,1757183438987,-150.0,0.00013617,2]
[383934629,1757183438996,-150.0,0.00013617,2]
[383934630,1757183439005,-169.29,0.00013617,2]
[383934631,1757183439014,-975.0,0.00013627,2]
[383934632,1757183439024,-2154.0,0.00013627,2]
[383934633,1757183439034,-517.38200392,0.00013627,2]
[383934634,1757183439045,-116.61799608,0.00013627,2]
[383934635,1757183439055,-409.0,0.00013627,2]
[383934636,1757183439064,-655.72738499,0.00013639,2]
[383934645,1757183439460,-1527.59071688,0.00013639,2]
[383934647,1757183439470,-319.674,0.00013644,2]
[383934649,1757183439480,-500.0,0.00013673,2]
[383934651,1757183439489,-500.0,0.00013673,2]
[383934653,1757183439499,-500.0,0.00013673,2]
[383934655,1757183439509,-500.0,0.00013673,2]
[383934657,1757183439519,-500.0,0.00013673,2]
[383934659,1757183439528,-500.0,0.00013673,2]
[383934660,1757183439538,-500.0,0.00013673,2]
[383934661,1757183439547,-500.0,0.00013673,2]
[383934662,1757183439557,-500.0,0.00013673,2]
[383934663,1757183439567,-500.0,0.00013673,2]
[383934664,1757183439577,-500.0,0.00013673,2]
[383934665,1757183439587,-500.0,0.00013673,2]
[383934666,1757183439597,-500.0,0.00013673,2]
[383934667,1757183439607,-500.0,0.00013673,2]
[383934668,1757183439616,-500.0,0.00013673,2]
[383934669,1757183439626,-500.0,0.00013673,2]
[383934670,1757183439636,-500.0,0.00013673,2]
[383934671,1757183439646,-367.04078439,0.00013673,2]
[383934672,1757183439656,-500.0,0.00013673,2]
[383934673,1757183439666,-500.0,0.00013673,2]
[383934674,1757183439675,-500.0,0.00013673,2]
[383934675,1757183439685,-430.59196184,0.00013673,2]
[383934676,1757183439695,-500.0,0.00013673,2]
[383934677,1757183439705,-500.0,0.00013673,2]
[383934678,1757183439715,-151.0,0.00013673,2]
[383934679,1757183439726,-151.0,0.00013673,2]
[383934680,1757183439735,-151.0,0.00013673,2]
[383934681,1757183439745,-151.0,0.00013673,2]
[383934682,1757183439754,-151.0,0.00013673,2]
[383934683,1757183439764,-151.0,0.00013673,2]
[383934684,1757183439773,-151.0,0.00013673,2]
[383934685,1757183439783,-151.0,0.00013673,2]
[383934686,1757183439792,-151.0,0.00013673,2]
[383934687,1757183439801,-151.0,0.00013673,2]
[383934688,1757183439811,-151.0,0.00013673,2]
[383934689,1757183439820,-151.0,0.00013673,2]
[383934690,1757183439830,-152.56262,0.00013673,2]
[383934691,1757183439839,-151.0,0.00013673,2]
[383934692,1757183439849,-151.0,0.00013673,2]
[383934693,1757183439858,-151.0,0.00013673,2]
[383934694,1757183439868,-151.0,0.00013673,2]
[383934695,1757183439879,-151.0,0.00013673,2]
[383934696,1757183439889,-151.0,0.00013673,2]
[383934697,1757183439899,-151.0,0.00013673,2]
[383934698,1757183439909,-151.0,0.00013673,2]
[383934699,1757183439919,-151.0,0.00013673,2]
[383934700,1757183439928,-151.000002,0.00013673,2]
[383934701,1757183439938,-151.0,0.00013673,2]
[383934702,1757183439948,-151.0,0.00013673,2]
[383934703,1757183439958,-151.0,0.00013673,2]
[383934704,1757183439968,-151.0,0.00013673,2]
[383934705,1757183439979,-151.0,0.00013673,2]
[383934706,1757183439988,-151.0,0.00013673,2]
[383934708,1757183439998,-151.0,0.00013673,2]
[383934709,1757183440008,-151.0,0.00013673,2]
[383934710,1757183440018,-151.0,0.00013673,2]
[383934711,1757183440028,-151.0,0.00013673,2]
[383934712,1757183440037,-151.0,0.00013673,2]
[383934713,1757183440047,-151.0,0.00013673,2]
[383934714,1757183440057,-151.0,0.00013673,2]
[383934715,1757183440067,-155.423752,0.00013673,2]
[383934716,1757183440077,-155.423752,0.00013673,2]
[383934717,1757183440086,-155.423752,0.00013673,2]
[383934718,1757183440096,-151.0,0.00013673,2]
[383934719,1757183440106,-155.423752,0.00013673,2]
[383934720,1757183440115,-151.0,0.00013673,2]
[383934721,1757183440124,-151.0,0.00013673,2]
[383934722,1757183440135,-151.0,0.00013673,2]
[383934723,1757183440145,-151.0,0.00013673,2]
[383934724,1757183440155,-151.0,0.00013673,2]
[383934725,1757183440165,-151.0,0.00013673,2]
[383934726,1757183440175,-151.0,0.00013673,2]
[383934728,1757183440184,-151.0,0.00013673,2]
[383934730,1757183440195,-151.0,0.00013673,2]
[383934732,1757183440204,-151.0,0.00013673,2]
[383934734,1757183440215,-151.0,0.00013673,2]
[383934736,1757183440224,-151.0,0.00013673,2]
[383934738,1757183440234,-151.0,0.00013673,2]
[383934740,1757183440243,-151.0,0.00013673,2]
[383934742,1757183440253,-151.0,0.00013673,2]
[383934744,1757183440263,-151.0,0.00013673,2]
[383934746,1757183440273,-151.0,0.00013673,2]
[383934748,1757183440283,-151.0,0.00013673,2]
[383934750,1757183440292,-151.0,0.00013673,2]
[383934752,1757183440304,-151.0,0.00013673,2]
[383934754,1757183440315,-151.0,0.00013673,2]
[383934756,1757183440324,-151.0,0.00013673,2]
[383934758,1757183440334,-151.0,0.00013673,2]
[383934760,1757183440343,-151.0,0.00013673,2]
[383934762,1757183440352,-151.0,0.00013673,2]
[383934764,1757183440361,-151.0,0.00013673,2]
[383934766,1757183440371,-151.0,0.00013673,2]
[383934768,1757183440380,-151.0,0.00013673,2]
[383934770,1757183440390,-151.0,0.00013673,2]
[383934772,1757183440400,-174.255112,0.00013673,2]
[383934774,1757183440410,-174.255112,0.00013673,2]
[383934775,1757183440419,-260.836864,0.00013673,2]
[383934777,1757183440428,-174.255112,0.00013673,2]
[383934780,1757183440439,-260.836864,0.00013673,2]
[383934781,1757183440448,-260.836864,0.00013673,2]
[383934783,1757183440458,-260.836864,0.00013673,2]
[383934785,1757183440467,-174.255112,0.00013673,2]
[383934787,1757183440477,-991.200739,0.00013673,2]
[383934789,1757183440486,-991.200739,0.00013673,2]
[383934791,1757183440496,-991.200739,0.00013673,2]
[383934793,1757183440506,-991.200739,0.00013673,2]
[383934795,1757183440516,-151.0,0.00013673,2]
[383934797,1757183440525,-151.0,0.00013673,2]
[383934799,1757183440535,-151.0,0.00013673,2]
[383934801,1757183440544,-151.0,0.00013673,2]
[383934803,1757183440554,-151.0,0.00013673,2]
[383934825,1757183440732,-151.0,0.00013673,2]
[383934827,1757183440742,-151.0,0.00013673,2]
[383934829,1757183440752,-289.460848,0.00013673,2]
[383934830,1757183440761,-151.0,0.00013673,2]
[383934833,1757183440771,-151.0,0.00013673,2]
[383934835,1757183440781,-151.0,0.00013673,2]
[383934836,1757183440790,-151.0,0.00013673,2]
[383934838,1757183440800,-151.0,0.00013673,2]
[383934840,1757183440809,-151.0,0.00013673,2]
[383934842,1757183440818,-151.0,0.00013673,2]
[383934844,1757183440828,-151.0,0.00013673,2]
[383934846,1757183440837,-151.0,0.00013673,2]
[383934848,1757183440846,-151.0,0.00013673,2]
[383934850,1757183440855,-151.0,0.00013673,2]
[383934852,1757183440865,-151.0,0.00013673,2]
[383934854,1757183440879,-188.320365,0.00013673,2]
[383934856,1757183440888,-151.0,0.00013673,2]
[383934858,1757183440898,-188.320365,0.00013673,2]
[383934860,1757183440908,-188.320365,0.00013673,2]
[383934862,1757183440917,-151.0,0.00013673,2]
[383934864,1757183440926,-188.320365,0.00013673,2]
[383934866,1757183440935,-151.0,0.00013673,2]
[383934868,1757183440944,-151.0,0.00013673,2]
[383934870,1757183440953,-220.694872,0.00013673,2]
[383934872,1757183440964,-151.0,0.00013673,2]
[383934874,1757183440974,-176.739028,0.00013673,2]
[383934876,1757183440984,-176.739028,0.00013673,2]
[383934878,1757183440993,-176.739028,0.00013673,2]
[383934880,1757183441002,-151.0,0.00013673,2]
[383934882,1757183441012,-176.739028,0.00013673,2]
[383934884,1757183441022,-715.976417,0.00013673,2]
[383934886,1757183441032,-715.976417,0.00013673,2]
[383934888,1757183441041,-715.976417,0.00013673,2]
[383934890,1757183441051,-192.40332691,0.00013686,2]
[383934892,1757183441061,-3000.0,0.00013688,2]
[383934894,1757183441070,-151.0,0.0001369,2]
[383934896,1757183441081,-153.990148,0.0001369,2]
[383934898,1757183441100,-151.0,0.0001369,2]
[383934900,1757183441110,-151.0,0.0001369,2]
[383934901,1757183441119,-151.0,0.0001369,2]
[383934902,1757183441128,-151.0,0.0001369,2]
[383934903,1757183441139,-151.0,0.0001369,2]
[383934904,1757183441148,-151.0,0.0001369,2]
[383934905,1757183441158,-151.0,0.0001369,2]
[383934906,1757183441167,-151.0,0.0001369,2]
[383934907,1757183441177,-151.0,0.0001369,2]
[383934908,1757183441186,-151.0,0.0001369,2]
[383934909,1757183441196,-151.0,0.0001369,2]
[383934910,1757183441205,-250.123424,0.0001369,2]
[383934911,1757183441215,-151.0,0.0001369,2]
[383934913,1757183441225,-151.0,0.0001369,2]
[383934915,1757183441235,-151.0,0.0001369,2]
[383934916,1757183441244,-151.0,0.0001369,2]
[383934918,1757183441254,-151.0,0.0001369,2]
[383934920,1757183441264,-151.0,0.0001369,2]
[383934922,1757183441273,-151.0,0.0001369,2]
[383934924,1757183441283,-151.0,0.0001369,2]
[383934925,1757183441292,-151.0,0.0001369,2]
[383934926,1757183441301,-246.948759,0.0001369,2]
[383934927,1757183441311,-151.0,0.0001369,2]
[383934928,1757183441320,-153.299575,0.0001369,2]
[383934929,1757183441330,-151.0,0.0001369,2]
[383934930,1757183441339,-151.0,0.0001369,2]
[383934931,1757183441349,-271.928,0.0001369,2]
[383934932,1757183441358,-151.0,0.0001369,2]
[383934933,1757183441368,-151.0,0.0001369,2]
[383934934,1757183441377,-151.0,0.0001369,2]
[383934936,1757183441387,-151.0,0.0001369,2]
[383934938,1757183441397,-151.0,0.0001369,2]
[383934940,1757183441407,-151.0,0.0001369,2]
[383934941,1757183441416,-151.0,0.0001369,2]
[383934944,1757183441426,-151.0,0.0001369,2]